bitfinex/quotes_SOLUSD_20250101
["timestamp","ask_amount","ask_price","bid_price","bid_amount"]
[1735753090026,9.61358198,190.34,190.27,9.61358198]
[1735753090200,9.61358198,190.35,190.29,23.776884]
[1735753091634,9.61358198,190.34,190.28,23.776884]
[1735753093016,57.2,190.39,190.29,9.61358198]
[1735753093217,9.61358198,190.36,190.29,9.61358198]
[1735753093420,9.61358198,190.37,190.31,23.776884]
[1735753095456,66.93967501,190.44,190.33,9.61358198]
[1735753095742,9.61358198,190.41,190.35,23.776884]
[1735753097339,9.61358198,190.4,190.33,9.61358198]
[1735753098043,1.5887,190.44,190.35,23.776884]
[1735753098343,9.61358198,190.4,190.35,23.776884]
[1735753098641,9.61358198,190.4,190.34,23.776884]
[1735753099643,9.61358198,190.41,190.34,9.61358198]
[1735753101845,1.5887,190.44,190.36,9.61358198]
[1735753101846,9.61358198,190.43,190.36,9.61358198]
[1735753102014,9.61358198,190.42,190.36,23.776884]
[1735753102943,9.61358198,190.41,190.36,23.776884]
[1735753110026,1.5887,190.44,190.36,23.776884]
[1735753110225,9.61358198,190.42,190.36,23.776884]
[1735753111042,9.61358198,190.41,190.36,23.776884]
[1735753111553,9.61358198,190.39,190.27,1.5535]
[1735753111749,9.61358198,190.36,190.29,9.61358198]
[1735753111945,9.61358198,190.35,190.28,9.61358198]
[1735753112146,9.61358198,190.34,190.27,11.16708198]
[1735753113529,9.61358198,190.34,190.28,23.776884]
[1735753114775,9.61358198,190.36,190.3,23.776884]
[1735753115457,9.61358198,190.36,190.3,9.61358198]
[1735753115770,9.61358198,190.36,190.27,1.5535]
[1735753115771,9.61358198,190.37,190.32,23.776884]
[1735753116071,9.61358198,190.37,190.3,9.61358198]
[1735753116763,15.64048198,190.39,190.32,9.61358198]
[1735753118258,9.61358198,190.37,190.3,33.39046598]
[1735753122857,9.61358198,190.35,190.22,7.6214]
[1735753123033,9.61358198,190.35,190.28,9.61358198]
[1735753123237,9.61358198,190.35,190.29,23.776884]
[1735753123436,9.61358198,190.36,190.29,33.39046598]
[1735753127875,11.23958198,190.37,190.29,33.39046598]
[1735753133077,11.23958198,190.37,190.3,9.61358198]
[1735753134399,11.23958198,190.37,190.31,23.776884]
[1735753134706,6.0269,190.39,190.34,9.61358198]
[1735753136115,1.626,190.42,190.37,33.39046598]
[1735753138800,1.626,190.42,190.38,9.61358198]
[1735753139173,9.61358198,190.46,190.4,9.61358198]
[1735753139378,1.5159,190.47,190.41,9.61358198]
[1735753139679,9.61358198,190.46,190.4,9.61358198]
[1735753140299,9.61358198,190.46,190.39,9.61358198]
[1735753143708,9.61358198,190.46,190.4,9.61358198]
[1735753144307,1.5159,190.47,190.4,9.61358198]
[1735753144515,9.61358198,190.46,190.4,9.61358198]
[1735753147015,1.5159,190.47,190.4,9.61358198]
[1735753147198,9.61358198,190.46,190.39,9.61358198]
[1735753147388,11.12948198,190.47,190.4,9.61358198]
[1735753148906,9.61358198,190.46,190.39,9.61358198]
[1735753149514,9.61358198,190.46,190.4,23.776884]
[1735753154112,11.12948198,190.47,190.4,9.61358198]
[1735753154415,9.61358198,190.46,190.4,9.61358198]
[1735753156911,9.61358198,190.45,190.39,9.61358198]
[1735753157113,1.5159,190.47,190.4,23.776884]
[1735753157414,9.61358198,190.46,190.4,33.39046598]
[1735753157983,1.5159,190.47,190.4,33.39046598]
[1735753158203,11.12948198,190.47,190.4,33.39046598]
[1735753158397,9.61358198,190.46,190.4,33.39046598]
[1735753159108,9.61358198,190.46,190.4,23.776884]
[1735753159412,9.61358198,190.45,190.4,23.776884]
[1735753160595,9.61358198,190.45,190.39,23.776884]
[1735753161009,9.61358198,190.46,190.4,9.61358198]
[1735753162316,1.5159,190.47,190.4,9.61358198]
[1735753162513,9.61358198,190.46,190.4,9.61358198]
[1735753165517,9.61358198,190.46,190.39,9.61358198]
[1735753165722,9.61358198,190.45,190.39,9.61358198]
[1735753166101,9.61358198,190.46,190.39,9.61358198]
[1735753166308,1.5159,190.47,190.41,9.61358198]
[1735753166518,1.5159,190.47,190.42,23.776884]
[1735753166904,11.12948198,190.47,190.4,9.61358198]
[1735753167231,9.61358198,190.46,190.38,9.61358198]
[1735753167918,9.61358198,190.46,190.4,23.776884]
[1735753168926,9.61358198,190.46,190.37,23.776884]
[1735753169128,9.61358198,190.46,190.39,23.776884]
[1735753173526,1.5159,190.47,190.39,23.776884]
[1735753173820,9.61358198,190.46,190.39,23.776884]
[1735753175215,9.61358198,190.46,190.39,9.61358198]
[1735753175410,9.61358198,190.43,190.35,21.047824]
[1735753175610,9.61358198,190.42,190.35,9.61358198]
[1735753176318,9.61358198,190.42,190.36,23.776884]
[1735753177932,9.61358198,190.38,190.28,1.5446]
[1735753178103,9.61358198,190.37,190.3,9.61358198]
[1735753178303,9.61358198,190.37,190.28,22.600597]
[1735753178504,9.61358198,190.37,190.31,23.776884]
[1735753178705,9.61358198,190.35,190.26,6.3432]
[1735753178924,9.61358198,190.35,190.29,23.776884]
[1735753179135,9.61358198,190.36,190.3,9.61358198]
[1735753180324,9.98613628,190.4,190.34,9.61358198]
[1735753180527,19.59971826,190.4,190.34,9.61358198]
[1735753180906,1.5386,190.4,190.35,33.39046598]
[1735753181102,9.61358198,190.42,190.36,9.61358198]
[1735753181418,9.61358198,190.44,190.37,9.61358198]
[1735753181813,9.61358198,190.44,190.38,9.61358198]
[1735753182505,11.12638198,190.45,190.39,9.61358198]
[1735753182711,1.5128,190.45,190.39,9.61358198]
[1735753183729,11.12638198,190.45,190.38,9.61358198]
[1735753183932,11.12638198,190.45,190.39,23.776884]
[1735753186026,9.61358198,190.44,190.38,23.776884]
[1735753188224,1.5128,190.45,190.35,9.61358198]
[1735753188225,9.61358198,190.42,190.35,9.61358198]
[1735753188424,9.61358198,190.42,190.36,23.776884]
[1735753188735,9.61358198,190.41,190.36,23.776884]
[1735753189310,9.61358198,190.41,190.35,23.776884]
[1735753190206,9.61358198,190.4,190.31,1.5202]
[1735753190412,9.61358198,190.4,190.34,23.776884]
[1735753190724,9.61358198,190.41,190.34,9.61358198]
[1735753191324,9.61358198,190.4,190.34,23.776884]
[1735753194614,9.61358198,190.41,190.34,9.61358198]
[1735753195033,9.61358198,190.41,190.35,9.61358198]
[1735753196338,9.61358198,190.4,190.34,23.776884]
[1735753196834,9.61358198,190.41,190.34,33.39046598]
[1735753197034,9.61358198,190.4,190.34,23.776884]
[1735753199726,9.61358198,190.37,190.3,9.61358198]
[1735753200430,9.61358198,190.37,190.31,23.776884]
[1735753201239,9.61358198,190.38,190.31,29.61358198]
[1735753201449,9.61358198,190.39,190.34,23.776884]
[1735753202243,9.61358198,190.4,190.34,23.776884]
[1735753206652,9.61358198,190.41,190.34,9.61358198]
[1735753207957,9.61358198,190.42,190.36,23.776884]
[1735753208248,9.61358198,190.42,190.34,9.61358198]
[1735753208757,1.5128,190.45,190.38,9.61358198]
[1735753209046,11.12638198,190.45,190.39,23.776884]
[1735753211652,9.61358198,190.44,190.37,9.61358198]
[1735753211958,9.61358198,190.41,190.34,9.61358198]
[1735753212254,9.61358198,190.41,190.35,23.776884]
[1735753212954,9.61358198,190.4,190.33,9.61358198]
[1735753213130,9.61358198,190.4,190.34,23.776884]
[1735753214757,9.61358198,190.39,190.34,23.776884]
[1735753215538,44.83122792,190.44,190.33,23.776884]
[1735753215539,9.61358198,190.38,190.33,23.776884]
[1735753215742,9.61358198,190.37,190.3,9.61358198]
[1735753216434,9.61358198,190.37,190.31,23.776884]
[1735753218064,9.61358198,190.36,190.31,23.776884]
[1735753221569,9.61358198,190.38,190.33,23.776884]
[1735753221764,9.61358198,190.39,190.33,33.39046598]
[1735753223065,6.3769,190.44,190.33,33.39046598]
[1735753223268,9.61358198,190.39,190.33,33.39046598]
[1735753224051,9.61358198,190.39,190.33,23.776884]
[1735753224459,9.61358198,190.38,190.31,9.61358198]
[1735753225865,9.61358198,190.38,190.32,23.776884]
[1735753226274,9.61358198,190.38,190.31,9.61358198]
[1735753226845,9.61358198,190.37,190.32,23.776884]
[1735753227771,9.61358198,190.36,190.29,9.61358198]
[1735753227985,9.61358198,190.35,190.29,9.61358198]
[1735753228159,9.61358198,190.35,190.3,23.776884]
[1735753229056,1.6424,190.39,190.3,23.776884]
[1735753229057,9.61358198,190.36,190.3,23.776884]
[1735753232571,9.61358198,190.36,190.3,9.61358198]
[1735753232761,9.61358198,190.37,190.3,9.61358198]
[1735753235390,9.61358198,190.37,190.26,23.776884]
[1735753235668,9.61358198,190.36,190.3,23.776884]
[1735753241965,9.61358198,190.35,190.23,2.32478303]
[1735753242174,9.61358198,190.33,190.26,9.61358198]
[1735753242755,9.61358198,190.31,190.27,2.90648369]
[1735753243254,9.61358198,190.31,190.28,23.776884]
[1735753243471,4.1626303,190.36,190.28,23.776884]
[1735753243472,9.61358198,190.32,190.28,23.776884]
[1735753243780,9.61358198,190.32,190.27,23.776884]
[1735753244159,9.61358198,190.29,190.21,6.5996]
[1735753244486,9.61358198,190.3,190.23,9.61358198]
[1735753244786,9.61358198,190.3,190.24,23.776884]
[1735753245091,9.61358198,190.3,190.24,12.51890966]
[1735753245475,9.61358198,190.3,190.25,23.776884]
[1735753248579,1.6604,190.33,190.25,9.61358198]
[1735753248757,9.61358198,190.35,190.29,23.776884]
[1735753249682,17.54708198,190.37,190.31,23.776884]
[1735753249978,11.27398198,190.37,190.31,23.776884]
[1735753250882,11.27398198,190.37,190.29,9.61358198]
[1735753250883,9.61358198,190.36,190.29,9.61358198]
[1735753251864,9.61358198,190.35,190.29,9.61358198]
[1735753252188,9.61358198,190.35,190.29,23.776884]
[1735753252860,9.61358198,190.33,190.26,1.6091]
[1735753253195,9.61358198,190.32,190.25,9.61358198]
[1735753253400,9.61358198,190.32,190.26,23.776884]
[1735753253876,9.61358198,190.32,190.27,2.90148809]
[1735753254384,9.61358198,190.31,190.27,2.90148809]
[1735753254559,9.61358198,190.31,190.24,9.61358198]
[1735753254760,9.61358198,190.3,190.23,9.61358198]
[1735753255256,9.61358198,190.3,190.24,23.776884]
[1735753255584,9.61358198,190.29,190.22,9.61358198]
[1735753255788,9.61358198,190.27,190.21,9.61358198]
[1735753255984,9.61358198,190.27,190.22,23.776884]
[1735753256583,9.61358198,190.28,190.22,23.776884]
[1735753256790,9.61358198,190.29,190.22,9.61358198]
[1735753258790,9.61358198,190.28,190.22,9.61358198]
[1735753259675,9.61358198,190.3,190.24,23.776884]
[1735753260665,9.61358198,190.3,190.24,9.61358198]
[1735753261189,9.61358198,190.28,190.24,23.776884]
[1735753261365,9.61358198,190.28,190.21,9.61358198]
[1735753261566,9.61358198,190.28,190.22,23.776884]
[1735753261968,9.61358198,190.27,190.2,9.61358198]
[1735753262181,9.61358198,190.26,190.2,9.61358198]
[1735753262367,9.61358198,190.26,190.21,23.776884]
[1735753262567,9.61358198,190.27,190.21,23.776884]
[1735753265277,9.61358198,190.26,190.21,23.776884]
[1735753265663,9.61358198,190.26,190.19,9.61358198]
[1735753265867,9.61358198,190.25,190.19,9.61358198]
[1735753266692,9.61358198,190.25,190.18,9.61358198]
[1735753267293,9.61358198,190.25,190.2,23.776884]
[1735753268489,9.61358198,190.24,190.17,9.61358198]
[1735753268695,9.61358198,190.23,190.16,17.76498198]
[1735753269070,9.61358198,190.23,190.17,9.61358198]
[1735753269287,9.61358198,190.24,190.18,23.776884]
[1735753270109,1.6354,190.29,190.2,23.776884]
[1735753270314,9.61358198,190.25,190.2,23.776884]
[1735753270481,9.61358198,190.25,190.18,9.61358198]
[1735753270684,20.0,190.28,190.18,9.61358198]
[1735753270994,9.61358198,190.24,190.18,9.61358198]
[1735753271577,9.61358198,190.24,190.17,33.39046598]
[1735753273183,9.61358198,190.24,190.18,9.61358198]
[1735753277387,9.61358198,190.25,190.2,23.776884]
[1735753277782,9.61358198,190.26,190.2,23.776884]
[1735753278518,9.61358198,190.26,190.2,9.61358198]
[1735753278711,9.61358198,190.26,190.2,23.776884]
[1735753280744,9.61358198,190.24,190.2,23.776884]
[1735753280904,9.61358198,190.24,190.17,9.61358198]
[1735753281101,9.61358198,190.24,190.18,9.61358198]
[1735753282026,9.61358198,190.24,190.19,23.776884]
[1735753283729,9.61358198,190.24,190.17,33.39046598]
[1735753283923,9.61358198,190.24,190.17,32.89046598]
[1735753284807,9.61358198,190.25,190.19,23.776884]
[1735753285008,9.61358198,190.24,190.19,23.776884]
[1735753286224,9.61358198,190.24,190.17,33.39046598]
[1735753286800,1.6354,190.29,190.19,23.776884]
[1735753287005,9.61358198,190.26,190.19,33.39046598]
[1735753288244,9.61358198,190.26,190.2,9.61358198]
[1735753289120,9.61358198,190.26,190.21,23.776884]
[1735753289929,9.61358198,190.26,190.19,9.61358198]
[1735753291827,9.61358198,190.26,190.2,9.61358198]
[1735753292038,9.61358198,190.26,190.21,23.776884]
[1735753292631,1.6354,190.29,190.23,23.776884]
[1735753292820,11.24898198,190.29,190.23,9.61358198]
[1735753293027,10.6997303,190.33,190.25,33.39046598]
[1735753293230,9.61358198,190.31,190.25,23.776884]
[1735753293532,9.61358198,190.3,190.25,23.776884]
[1735753294231,9.61358198,190.3,190.23,9.61358198]
[1735753294941,9.61358198,190.29,190.23,9.61358198]
[1735753296541,10.6997303,190.33,190.24,20.0]
[1735753296542,9.61358198,190.27,190.24,20.0]
[1735753297437,9.61358198,190.28,190.25,23.776884]
[1735753299537,9.61358198,190.3,190.25,23.776884]
[1735753302945,9.61358198,190.28,190.25,23.776884]
[1735753303117,9.61358198,190.29,190.25,23.776884]
[1735753304146,9.61358198,190.3,190.25,23.776884]
[1735753304833,9.61358198,190.31,190.25,23.776884]
[1735753306648,4.1626303,190.33,190.25,33.39046598]
[1735753306819,8.15097501,190.37,190.29,33.39046598]
[1735753307019,17.76455699,190.37,190.31,23.776884]
[1735753307225,9.61358198,190.37,190.31,23.776884]
[1735753309120,9.61358198,190.37,190.31,9.61358198]
[1735753312154,4.1626303,190.41,190.31,9.61358198]
[1735753312446,9.61358198,190.38,190.31,9.61358198]
[1735753312651,9.61358198,190.37,190.31,9.61358198]
[1735753312841,9.61358198,190.37,190.31,20.0]
[1735753313031,9.61358198,190.37,190.3,9.61358198]
[1735753313232,9.61358198,190.37,190.31,23.776884]
[1735753315152,9.61358198,190.34,190.31,20.0]
[1735753316453,61.3626303,190.41,190.33,23.776884]
[1735753316632,9.61358198,190.36,190.33,23.776884]
[1735753317544,9.61358198,190.37,190.3,9.61358198]
[1735753318148,9.61358198,190.37,190.32,43.776884]
[1735753318346,9.61358198,190.37,190.32,23.776884]
[1735753318754,9.61358198,190.38,190.32,23.776884]
[1735753320852,9.61358198,190.36,190.29,21.055995]
[1735753321047,9.61358198,190.36,190.3,23.776884]
[1735753321252,9.61358198,190.38,190.32,23.776884]
[1735753323935,9.61358198,190.37,190.31,23.776884]
[1735753324135,9.61358198,190.38,190.31,23.776884]
[1735753325546,9.61358198,190.38,190.31,33.39046598]
[1735753329961,7.8437,190.43,190.34,33.39046598]
[1735753330162,9.61358198,190.42,190.36,23.776884]
[1735753333261,1.6549,190.43,190.36,9.61358198]
[1735753333470,11.26848198,190.43,190.36,9.61358198]
[1735753335670,9.61358198,190.43,190.39,20.0]
[1735753339350,9.61358198,190.43,190.36,9.61358198]
[1735753339970,9.61358198,190.42,190.36,9.61358198]
[1735753340169,9.61358198,190.42,190.37,23.776884]
[1735753340366,9.61358198,190.4,190.34,1.5032]
[1735753340567,9.61358198,190.39,190.32,9.61358198]
[1735753340753,9.61358198,190.39,190.35,20.0]
[1735753341067,9.61358198,190.39,190.33,23.776884]
[1735753341474,9.61358198,190.39,190.3,6.3665]
[1735753341658,9.61358198,190.38,190.31,9.61358198]
[1735753341970,9.61358198,190.38,190.34,20.0]
[1735753342168,9.61358198,190.37,190.32,23.776884]
[1735753342748,9.61358198,190.36,190.31,23.776884]
[1735753344971,9.61358198,190.37,190.31,23.776884]
[1735753345172,9.61358198,190.38,190.31,9.61358198]
[1735753347676,9.61358198,190.39,190.32,9.61358198]
[1735753348761,9.61358198,190.39,190.33,29.61358198]
[1735753351358,9.61358198,190.39,190.33,9.61358198]
[1735753352765,9.61358198,190.39,190.33,29.61358198]
[1735753353955,9.61358198,190.39,190.33,20.0]
[1735753354152,9.61358198,190.36,190.29,32.17277698]
[1735753354375,9.61358198,190.35,190.29,23.776884]
[1735753354683,9.61358198,190.36,190.29,33.39046598]
[1735753356583,9.61358198,190.37,190.31,23.776884]
[1735753358477,9.61358198,190.36,190.29,9.61358198]
[1735753359679,9.61358198,190.36,190.28,23.776884]
[1735753359883,9.61358198,190.36,190.29,9.61358198]
[1735753360475,9.61358198,190.34,190.28,23.776884]
[1735753360677,9.61358198,190.37,190.3,9.61358198]
[1735753360881,9.61358198,190.37,190.31,23.776884]
[1735753361055,9.61358198,190.38,190.31,9.61358198]
[1735753361255,8.2177,190.41,190.31,9.61358198]
[1735753361256,9.61358198,190.39,190.31,9.61358198]
[1735753361968,9.61358198,190.39,190.33,23.776884]
[1735753362692,8.2177,190.41,190.33,9.61358198]
[1735753362693,9.61358198,190.4,190.33,9.61358198]
[1735753364581,9.61358198,190.39,190.33,23.776884]
[1735753364963,8.2177,190.41,190.33,23.776884]
[1735753365164,9.61358198,190.39,190.33,23.776884]
[1735753369191,9.61358198,190.39,190.32,23.776884]
[1735753373901,8.2177,190.41,190.32,23.776884]
[1735753374193,9.61358198,190.39,190.32,23.776884]
[1735753378998,9.61358198,190.38,190.32,23.776884]
[1735753379194,9.61358198,190.38,190.3,9.61358198]
[1735753379411,9.61358198,190.37,190.31,23.776884]
[1735753380200,9.61358198,190.38,190.31,9.61358198]
[1735753380806,9.61358198,190.39,190.33,23.776884]
[1735753381606,1.6577,190.41,190.33,23.776884]
[1735753381890,9.61358198,190.39,190.33,23.776884]
[1735753384889,9.61358198,190.4,190.33,23.776884]
[1735753386705,9.61358198,190.39,190.33,23.776884]
[1735753387102,1.6577,190.41,190.33,23.776884]
[1735753387283,9.61358198,190.4,190.33,23.776884]
[1735753391110,9.61358198,190.4,190.28,2.41393785]
[1735753391299,9.61358198,190.4,190.33,23.776884]
[1735753392889,9.61358198,190.38,190.33,23.776884]
[1735753393089,9.61358198,190.38,190.3,20.0]
[1735753393611,9.61358198,190.37,190.31,23.776884]
[1735753393812,9.61358198,190.37,190.3,29.61358198]
[1735753394114,9.61358198,190.36,190.32,2.91203836]
[1735753394705,9.61358198,190.36,190.3,23.776884]
[1735753395307,9.61358198,190.36,190.31,2.91208081]
[1735753396019,9.61358198,190.36,190.32,2.91208081]
[1735753396616,9.61358198,190.36,190.3,23.776884]
[1735753397116,9.61358198,190.36,190.31,2.9120194]
[1735753397992,9.61358198,190.36,190.32,2.9120194]
[1735753398906,9.61358198,190.36,190.3,23.776884]
[1735753399394,9.61358198,190.36,190.31,2.91197225]
[1735753400003,9.61358198,190.36,190.32,2.91197225]
[1735753400702,9.61358198,190.36,190.3,33.39046598]
[1735753401519,9.61358198,190.36,190.31,2.91244044]
[1735753402424,9.61358198,190.36,190.32,2.91244044]
[1735753403118,9.61358198,190.36,190.3,33.39046598]
[1735753407818,9.61358198,190.36,190.29,23.776884]
[1735753408123,1.5108,190.38,190.23,6.81724752]
[1735753408314,9.61358198,190.31,190.24,9.61358198]
[1735753408519,9.61358198,190.31,190.25,23.776884]
[1735753408819,1.5108,190.38,190.25,23.776884]
[1735753408999,1.5108,190.38,190.25,33.39046598]
[1735753409000,9.61358198,190.32,190.25,33.39046598]
[1735753409203,9.61358198,190.32,190.26,2.91268896]
[1735753409628,9.61358198,190.32,190.25,33.39046598]
[1735753411026,9.61358198,190.32,190.26,2.91060372]
[1735753411919,9.61358198,190.34,190.27,33.39046598]
[1735753412121,9.61358198,190.35,190.29,23.776884]
[1735753412328,9.61358198,190.36,190.29,33.39046598]
[1735753412706,1.5108,190.38,190.29,33.39046598]
[1735753412914,9.61358198,190.35,190.29,33.39046598]
[1735753413416,9.61358198,190.35,190.23,2.35422897]
[1735753413417,9.61358198,190.36,190.3,9.61358198]
[1735753413614,9.61358198,190.36,190.31,23.776884]
[1735753413812,9.61358198,190.37,190.31,23.776884]
[1735753414018,9.61358198,190.36,190.29,9.61358198]
[1735753414551,9.61358198,190.35,190.28,9.61358198]
[1735753414733,9.61358198,190.34,190.27,9.61358198]
[1735753414906,9.61358198,190.34,190.28,23.776884]
[1735753415102,9.61358198,190.33,190.26,9.61358198]
[1735753415933,9.61358198,190.34,190.27,29.61358198]
[1735753420329,9.61358198,190.33,190.27,20.0]
[1735753422331,9.61358198,190.32,190.27,20.0]
[1735753422539,9.61358198,190.31,190.24,9.61358198]
[1735753422717,9.61358198,190.31,190.23,1.566]
[1735753422908,9.61358198,190.3,190.23,9.61358198]
[1735753423113,9.61358198,190.3,190.24,23.776884]
[1735753423309,9.61358198,190.29,190.24,23.776884]
[1735753423921,9.61358198,190.3,190.24,23.776884]
[1735753424938,9.61358198,190.31,190.24,9.61358198]
[1735753425140,1.98921666,190.34,190.24,9.61358198]
[1735753425315,9.61358198,190.31,190.24,9.61358198]
[1735753425510,9.61358198,190.32,190.25,9.61358198]
[1735753425724,9.61358198,190.32,190.26,23.776884]
[1735753425933,9.61358198,190.32,190.26,33.39046598]
[1735753426241,1.5108,190.38,190.28,33.39046598]
[1735753426445,9.61358198,190.34,190.28,33.39046598]
[1735753426737,9.61358198,190.34,190.28,23.776884]
[1735753428917,1.5108,190.38,190.28,23.776884]
[1735753429135,9.61358198,190.34,190.28,23.776884]
[1735753431234,1.5108,190.38,190.28,23.776884]
[1735753431434,9.61358198,190.34,190.28,23.776884]
[1735753431628,1.5108,190.38,190.28,23.776884]
[1735753431831,9.61358198,190.34,190.28,23.776884]
[1735753433240,1.5108,190.38,190.28,23.776884]
[1735753433438,9.61358198,190.34,190.28,23.776884]
[1735753434246,9.61358198,190.33,190.26,33.39046598]
[1735753434444,9.61358198,190.33,190.26,23.776884]
[1735753434648,9.61358198,190.33,190.26,33.39046598]
[1735753440134,9.61358198,190.32,190.26,23.776884]
[1735753440340,9.61358198,190.31,190.26,23.776884]
[1735753440648,9.61358198,190.31,190.25,1.5948]
[1735753440845,9.61358198,190.32,190.25,1.5948]
[1735753441137,9.61358198,190.32,190.26,23.776884]
[1735753443151,9.61358198,190.33,190.26,33.39046598]
[1735753443357,9.61358198,190.34,190.28,23.776884]
[1735753444161,1.5108,190.38,190.28,23.776884]
[1735753444458,9.61358198,190.37,190.3,9.61358198]
[1735753445861,9.61358198,190.37,190.32,23.776884]
[1735753446365,9.61358198,190.36,190.29,9.61358198]
[1735753446551,9.61358198,190.36,190.3,23.776884]
[1735753446855,9.61358198,190.37,190.3,9.61358198]
[1735753447062,9.61358198,190.37,190.31,23.776884]
[1735753448466,10.03841666,190.43,190.31,23.776884]
[1735753448843,9.61358198,190.36,190.29,33.39046598]
[1735753449466,9.61358198,190.36,190.31,23.776884]
[1735753450044,9.61358198,190.36,190.3,23.776884]
[1735753450244,9.61358198,190.37,190.3,33.39046598]
[1735753450445,10.03841666,190.43,190.31,9.61358198]
[1735753450645,9.61358198,190.38,190.31,9.61358198]
[1735753452084,9.61358198,190.4,190.33,9.61358198]
[1735753453565,10.03841666,190.43,190.33,9.61358198]
[1735753453868,9.61358198,190.4,190.33,9.61358198]
[1735753454369,9.61358198,190.4,190.32,23.776884]
[1735753454586,9.61358198,190.4,190.33,9.61358198]
[1735753455060,9.61358198,190.38,190.32,23.776884]
[1735753455266,9.61358198,190.37,190.32,23.776884]
[1735753457078,9.61358198,190.38,190.32,23.776884]
[1735753457261,9.61358198,190.38,190.32,33.39046598]
[1735753458154,9.61358198,190.39,190.32,33.39046598]
[1735753460577,9.61358198,190.38,190.32,33.39046598]
[1735753462176,9.61358198,190.39,190.32,33.39046598]
[1735753462368,9.61358198,190.4,190.34,23.776884]
[1735753462877,6.14195677,190.42,190.34,23.776884]
[1735753463071,9.61358198,190.4,190.34,23.776884]
[1735753463957,9.61358198,190.39,190.32,33.39046598]
[1735753464670,9.61358198,190.38,190.32,23.776884]
[1735753464853,9.61358198,190.37,190.32,23.776884]
[1735753465262,9.61358198,190.38,190.32,23.776884]
[1735753469690,9.61358198,190.37,190.31,1.6663]
[1735753470366,9.61358198,190.36,190.31,1.6663]
[1735753470786,6.14195677,190.42,190.31,1.6663]
[1735753470986,9.61358198,190.37,190.31,1.6663]
[1735753480276,9.61358198,190.4,190.33,9.61358198]
[1735753480873,9.61358198,190.4,190.34,23.776884]
[1735753483094,9.61358198,190.41,190.34,9.61358198]
[1735753483495,9.61358198,190.41,190.34,33.39046598]
[1735753488719,9.61358198,190.41,190.35,33.39046598]
[1735753488890,9.61358198,190.42,190.35,33.39046598]
[1735753489220,9.61358198,190.44,190.37,34.94156598]
[1735753490110,9.61358198,190.44,190.38,9.61358198]
[1735753493697,9.61358198,190.43,190.37,34.94156598]
[1735753496221,12.18373494,190.47,190.38,9.61358198]
[1735753496421,9.61358198,190.44,190.37,34.94156598]
[1735753499336,9.61358198,190.43,190.37,34.94156598]
[1735753501824,9.61358198,190.43,190.37,25.327984]
[1735753502116,9.61358198,190.43,190.37,34.94156598]
[1735753503012,9.61358198,190.43,190.37,25.327984]
[1735753503406,9.61358198,190.43,190.37,34.94156598]
[1735753506421,12.18373494,190.47,190.37,34.94156598]
[1735753506724,9.61358198,190.43,190.37,34.94156598]
[1735753507220,9.61358198,190.44,190.38,9.61358198]
[1735753510319,9.61358198,190.39,190.28,1.5946]
[1735753510504,9.61358198,190.35,190.28,11.20818198]
[1735753510710,9.61358198,190.34,190.3,20.0]
[1735753510910,9.61358198,190.36,190.3,20.0]
[1735753511112,9.61358198,190.36,190.31,23.776884]
[1735753511414,9.61358198,190.37,190.31,23.776884]
[1735753511621,9.61358198,190.37,190.31,33.39046598]
[1735753513899,9.61358198,190.36,190.31,23.776884]
[1735753514207,9.61358198,190.34,190.3,20.0]
[1735753516120,9.61358198,190.31,190.23,1.6009]
[1735753516307,9.61358198,190.29,190.23,1.6009]
[1735753516500,9.61358198,190.27,190.23,1.6009]
[1735753516899,9.61358198,190.27,190.24,2.90739086]
[1735753517519,9.61358198,190.27,190.23,1.6009]
[1735753518196,9.61358198,190.27,190.22,6.0546]
[1735753518407,13.92327817,190.32,190.18,11.21448198]
[1735753518616,9.61358198,190.24,190.18,11.21448198]
[1735753519312,9.61358198,190.24,190.19,23.776884]
[1735753519905,9.61358198,190.23,190.18,1.6009]
[1735753520104,9.61358198,190.22,190.18,1.6009]
[1735753520813,44.3895,190.27,190.14,1.6009]
[1735753521017,9.61358198,190.18,190.14,1.6009]
[1735753521316,20.0,190.24,190.14,1.6009]
[1735753521523,20.0,190.24,190.15,23.776884]
[1735753521524,9.61358198,190.2,190.15,23.776884]
[1735753521818,10.52674051,190.26,190.15,23.776884]
[1735753521819,9.61358198,190.21,190.15,23.776884]
[1735753522054,9.61358198,190.2,190.15,23.776884]
[1735753522930,9.61358198,190.2,190.14,1.6009]
[1735753523116,9.61358198,190.19,190.14,1.6009]
[1735753523324,9.61358198,190.18,190.14,1.6009]
[1735753524823,9.61358198,190.19,190.14,1.6009]
[1735753526133,9.61358198,190.18,190.14,1.6009]
[1735753526312,9.61358198,190.17,190.1,9.61358198]